Cogmind - Beta 16 @@@ ROGUE MODE // 2025.11.25 @ 09:59:58 Player: shapeshifter Result: Destroyed by EP-1N9(j) with Overtuned Pulse Rifle Performance ------------- Evolutions (0) 0 Regions Visited (4) 800 Robots Destroyed (37) 185 Value Destroyed (1294) 1294 Prototype IDs (25) 500 Alien Tech Used (0) 0 Bonus (2800) 2800 TOTAL SCORE: 5579 Bonus ------- Delivered SUBCON Basin 2000 Registered with UFD 300 Met Optimus in HQ 500 Cogmind --------- Core Integrity 0/250 Matter 89/300 Energy 82/100 System Corruption 0% Temperature Warm (146) Movement Walking (130) Location -9/Scraptown Parts ------- > --- POWER (1) -------- (None) > --- PROPULSION (2) --- Cargo Legs > --- UTILITY (2) ------ High-capacity Storage Unit Field Manipulator > --- WEAPON (2) ------- Battle Cannon Rocket Launcher > --- INVENTORY (20) --- Medium Armor Plating Makeshift Kinetic Plating Authchip [Propulsion] Authchip [Weapon] Authchip [Weapon] Authchip [Weapon] Trap Extractor (0/4) Power Bank Arc Projector Arc Projector Arc Projector Slug Cannon LU-1G1's Laser Shovel CPS Tube (2) CPS Tube (2) Multitool Greatsword Peak State ------------ > --- POWER ------------ Subdweller Power Source > --- PROPULSION ------- Cargo Legs > --- UTILITY ---------- High-capacity Storage Unit Makeshift Kinetic Plating Scrap Shield > --- WEAPON ----------- Subdweller Machine Gun Slug Cannon > --- INVENTORY -------- Subdweller Power Source Power Bank Battle Cannon Scrap Shield Fragment Scrap Shield Fragment SUBCON Basin [Rating: 52] Favorites ----------- Power Subdweller Power Source Engine Subdweller Power Source Propulsion Cargo Legs Treads Light Treads Leg Cargo Legs Wheel Compact Wheel Utility High-capacity Storage Unit Device Seismic Detector Storage High-capacity Storage Unit Processor Tech Extrapolator Protection Scrap Shield Weapon Subdweller Machine Gun Energy Gun Subdweller Laser Energy Cannon Subdweller Beam Cannon Ballistic Gun Subdweller Machine Gun Ballistic Cannon Slug Cannon Launcher Rocket Launcher Special Weapon LU-1G1's Laser Shovel Build | -11 -10 -10 -9 -9 ------- Run | Yrd Mat Sub Rec Scr Slots Evolved . | . . . . . Power . | . . . . . Propulsion . | . . . . . Utility . | . . . . . Weapon . | . . . . . Parts Attached 42 | 7 2 23 2 8 Power 11 | 1 . 8 1 1 Engine 11 | 1 . 8 1 1 Core . | . . . . . Reactor . | . . . . . Propulsion 5 | 2 2 1 . . Treads 2 | 2 . . . . Leg 1 | . . 1 . . Wheel 2 | . 2 . . . Hover . | . . . . . Flight . | . . . . . Utility 9 | 2 . 4 . 3 Device 2 | 1 . . . 1 Storage 3 | 1 . 1 . 1 Processor 1 | . . . . 1 Hackware . | . . . . . Protection 3 | . . 3 . . Artifact . | . . . . . Weapon 17 | 2 . 10 1 4 Energy Gun 3 | . . 2 . 1 Energy Cannon 3 | . . 3 . . Ballistic Gun 6 | 2 . 3 1 . Ballistic Cannon 2 | . . 2 . . Launcher 2 | . . . . 2 Special Weapon 1 | . . . . 1 Impact Weapon . | . . . . . Slashing Weapon . | . . . . . Piercing Weapon . | . . . . . Special Melee Weapon . | . . . . . Unidentified Prototypes 2 | . . 1 . 1 Parts Lost 5 | . . 3 . 2 Power 1 | . . . . 1 Propulsion 2 | . . 2 . . Utility 1 | . . 1 . . Weapon 1 | . . . . 1 Highest Loss Streak 3 | . . 3 . 2 To Critical Strikes 1 | . . 1 . . Average Backups 9 | 3 4 5 9 16 Power 1 | . 1 1 1 . Propulsion . | 1 2 . . . Utility 3 | . . 1 3 7 Weapon 3 | . 1 2 3 6 Tool/Special . | . . . . . Unused Backups 26 | . . 8 1 17 Power 1 | . . 1 . . Propulsion . | . . . . . Utility 10 | . . 2 . 8 Weapon 11 | . . 4 1 6 Tool/Special 4 | . . 1 . 3 Average Slot Usage (%) 79 | . 100 77 76 81 Engine 11 | . 14 11 11 12 Leg 11 | . . 10 11 12 Wheel 1 | . 16 1 . . Device 4 | . 14 9 . . Storage 11 | . 14 10 11 12 Processor 1 | . . . . 5 Protection 12 | . . 11 22 11 Energy Cannon 3 | . . 7 . . Ballistic Gun 12 | . 28 12 10 12 Ballistic Cannon 7 | . . 2 11 13 Peak Build Rating 52 | 7 7 52 52 43 Average Rating 34 | 5 7 31 43 36 On Entrance 20 | . 7 7 52 38 Avg Prop Armor Cover (%) . | . . . . . Naked Turns . | . . . . . Heaviest Build 81 | 11 11 81 81 80 Greatest Support 55 | 40 40 55 55 55 Greatest Overweight (x) 2 | . . 2 1 1 Average Overweight (x) . | . . . 1 . Largest Inventory Capacity 20 | 8 8 20 20 20 Average Capacity 17 | 7 8 15 20 20 Most Carried 20 | 6 5 20 20 20 Average Carried 13 | 3 4 11 16 17 Final Capacity 20 | 8 8 20 20 20 Final Carried 20 | 4 5 20 16 18 Class Distribution -------------------- 51% | Subdweller-Mutant 48% | Mutant Dominant Class ---------------- Mutant | -10/Materials Subdweller-Mutant | -10/Subcaves Mutant | -9/Recycling Mutant | -9/Scraptown Resources | -11 -10 -10 -9 -9 ----------- Run | Yrd Mat Sub Rec Scr Matter Collected 1096 | 298 30 506 124 138 Remotely . | . . . . . Salvage Created 1418 | 99 . 1005 121 193 Parts 75 | 4 . 54 7 10 Haulers Intercepted . | . . . . . Recyclers Shooed . | . . . . . Parts Field Recycled . | . . . . . Retrieved Matter . | . . . . . Parts Self-Destructed 16 | . . 16 . . Prevented . | . . . . . Parts Restored . | . . . . . Kills | -11 -10 -10 -9 -9 ------- Run | Yrd Mat Sub Rec Scr Combat Hostiles Destroyed 32 | . . 26 3 3 Guns 15 | . . 13 2 . Cannons 12 | . . 11 1 . AOE 3 | . . . . 3 Classes Destroyed 9 | 2 . 6 . 1 Tunneler 2 | 2 . . . . Recycler 1 | 1 . . . . Turret 2 | . . 2 . . Swarmer 4 | . . 4 . . Grunt 1 | . . 1 . . Sentry 4 | . . 1 3 . Artisan 2 | . . 2 . . Subdweller 20 | . . 20 . . Scrapper 3 | . . . . 3 Best Kill Streak 4 | 2 . 4 1 3 Combat Bots Only 4 | . . 4 1 3 Max Kills in Single Turn 3 | 1 . 1 1 3 Gunslinging . | . . . . . Exploded 3 | . . . . 3 Melee . | . . . . . Uniques/NPCs Destroyed . | . . . . . Combat | -11 -10 -10 -9 -9 -------- Run | Yrd Mat Sub Rec Scr Hostile Shots Fired 202 | . . 155 12 35 Missed 67 | . . 54 5 8 Hits 135 | . . 101 7 27 Projectile 135 | . . 101 7 27 Critical Strikes 7 | . . 3 1 3 Damage Taken 2228 | . . 1694 100 434 Core 265 | . . 168 . 97 Absorbed by Shields . | . . . . . Ignored by Resistances 6 | . . . 6 . Core Remaining (%) 100 | 100 . . . . Volleys Fired 174 | 19 . 136 8 11 Largest 2 | 2 . 2 2 2 Hottest 110 | 40 . 110 70 73 Shots Fired 329 | 38 . 262 16 13 Gun 215 | 38 . 169 8 . Cannon 109 | . . 93 8 8 Launcher 5 | . . . . 5 Special . | . . . . . Kinetic 227 | 38 . 165 16 8 Thermal 90 | . . 90 . . Explosive 5 | . . . . 5 Electromagnetic 7 | . . 7 . . Robot Hit Streak 37 | 8 . 37 5 2 Robot Miss Streak 4 | 4 . 3 1 2 Penetration Max . | . . . . . Secondary Targets 1 | . . 1 . . Max Gunslinging Chain 1 | . . 1 . . Shots Hit Robots 157 | 23 . 119 12 3 Core Hits 65 | 6 . 44 4 11 Critical Kills 4 | . . 3 1 . Critical Parts Destroyed 2 | 1 . . . 1 Critical Strikes 7 | 1 . 4 1 1 Meltdown 2 | . . 2 . . Destroy 5 | 1 . 2 1 1 Melee Attacks . | . . . . . Impact . | . . . . . Slashing . | . . . . . Piercing . | . . . . . Sneak Attacks . | . . . . . Combat Hostiles . | . . . . . Follow-up Attacks . | . . . . . Damage Inflicted 3487 | 166 . 2494 239 588 Guns 1817 | 166 . 1534 117 . Cannons 1111 | . . 960 122 29 Explosions 559 | . . . . 559 Melee . | . . . . . Ramming . | . . . . . Kinetic 1796 | 166 . 1362 239 29 Thermal 1053 | . . 1053 . . Explosive 559 | . . . . 559 Electromagnetic 79 | . . 79 . . Impact . | . . . . . Slashing . | . . . . . Piercing . | . . . . . Highest Corruption . | . . . . . Average Corruption . | . . . . . Corruption Purged . | . . . . . Corruption Blocked . | . . . . . Overload Shots . | . . . . . Overflow Damage 20 | . . . . 20 Projectiles . | . . . . . Explosions 20 | . . . . 20 Melee . | . . . . . Knockbacks 2 | . . 2 . . Impact . | . . . . . Kinetic 2 | . . 2 . . Secondary . | . . . . . Self-Inflicted Damage . | . . . . . Shots . | . . . . . Rammed . | . . . . . Targets Rammed . | . . . . . Kicked . | . . . . . Crushed . | . . . . . Highest Temperature 276 | . . 276 38 163 Average Temperature 75 | . . 102 22 77 Received Heat Transfer 1287 | . . 936 54 297 Siege Activations . | . . . . . Martial Activations . | . . . . . Shielding Activations . | . . . . . Robots Disrupted . | . . . . . Combat Hostiles . | . . . . . Robots Corrupted . | . . . . . Combat Hostiles . | . . . . . Parts Fried . | . . . . . Impact Corruptions . | . . . . . Robots Melted 2 | . . 2 . . Combat Hostiles 2 | . . 2 . . Parts Melted 6 | . . 6 . . Heat Transferred 1398 | . . 1398 . . Parts Sabotaged . | . . . . . Parts Stolen . | . . . . . Parts Stripped . | . . . . . Power Chain Reactions . | . . . . . Alert | -11 -10 -10 -9 -9 ------- Run | Yrd Mat Sub Rec Scr Maximum Alert Level . | . . . . . Low Security (%) 100 | 100 100 . 100 . Level 1 . | . . . . . Level 2 . | . . . . . Level 3 . | . . . . . Level 4 . | . . . . . Level 5 . | . . . . . High Security . | . . . . . Max Security . | . . . . . Peak Influence 88 | 5 . . 88 . Initial 88 | . . . 88 . Average 12 | . . . 15 . Influence Increases 513 | 15 . 290 208 . Destroy 0b10 Robot/C 220 | . . 160 60 . Destroy 0b10 Robot/NC 15 | 15 . . . . Destroy Leader 10 | . . 10 . . Successful Hack 26 | . . . 26 . Select Force Hacks 120 | . . . 120 . Destroy Structure 2 | . . . 2 . Lose Combat Pursuer 120 | . . 120 . . Influence Decreases 513 | 15 . 104 394 . Entered New Map 98 | . . . 98 . Time Decay 415 | 15 . 104 296 . Squads Dispatched . | . . . . . Investigation . | . . . . . Extermination . | . . . . . Reinforcement . | . . . . . Assault . | . . . . . Garrison . | . . . . . Intercept . | . . . . . Searches Triggered . | . . . . . Construction Impeded . | . . . . . Haulers Reinforced . | . . . . . Active Scanning Responses . | . . . . . Cargo Convoy Interrupts . | . . . . . Stealth | -11 -10 -10 -9 -9 --------- Run | Yrd Mat Sub Rec Scr Distress Signals 1 | . 1 . . . Communications Jammed . | . . . . . Distress Signals . | . . . . . Times Spotted 47 | . 6 30 2 9 Peak Tracking Total 9 | . 3 3 1 9 Tactical Retreats 3 | . . 3 . . Traps | -11 -10 -10 -9 -9 ------- Run | Yrd Mat Sub Rec Scr Traps Triggered . | . . . . . Indirectly . | . . . . . Trap Hack Attempts . | . . . . . Triggered . | . . . . . Disarmed . | . . . . . Reprogrammed . | . . . . . Reused . | . . . . . Traps Extracted . | . . . . . Installed . | . . . . . Triggered . | . . . . . Machines | -11 -10 -10 -9 -9 ---------- Run | Yrd Mat Sub Rec Scr Machines Disabled 6 | . . 3 . 3 Max in Single Turn 1 | . . 1 . 1 Machines Repaired . | . . . . . Machines Dismantled . | . . . . . Machines Sabotaged . | . . . . . Overloaded Fab Kills . | . . . . . Hacking | -11 -10 -10 -9 -9 --------- Run | Yrd Mat Sub Rec Scr Machines Accessed 16 | . . 4 10 2 Terminals 5 | . . . 5 . Fabricators . | . . . . . Repair Stations . | . . . . . Recycling Units 5 | . . . 5 . Scanalyzers . | . . . . . Garrison Access . | . . . . . Total Hacks 40 | . . 7 26 7 Successful 31 | . . 7 17 7 Failed 9 | . . . 9 . Catastrophic 2 | . . . 2 . Database Lockouts . | . . . . . Manual 18 | . . . 18 . Terminals 14 | . . . 14 . Fabricators . | . . . . . Repair Stations . | . . . . . Recycling Units 12 | . . . 12 . Scanalyzers . | . . . . . Garrison Access . | . . . . . Terminal Hacks 15 | . . 7 1 7 Record 4 | . . 4 . . Robot Analysis 6 | . . . . 6 Open Door 1 | . . 1 . . Zone Layout 1 | . . . 1 . Proto ID Catalog 2 | . . 1 . 1 Release Object 1 | . . 1 . . Fabricator Hacks . | . . . . . Repair Station Hacks . | . . . . . Recycling Unit Hacks 4 | . . . 4 . Retrieve Components 4 | . . . 4 . Scanalyzer . | . . . . . Garrison Access Hacks . | . . . . . Unauthorized Hacks 12 | . . . 12 . Terminals 8 | . . . 8 . Botnet 3 | . . . 3 . Skim 5 | . . . 5 . Fabricators . | . . . . . Repair Stations . | . . . . . Recycling Units 4 | . . . 4 . Tunnel 4 | . . . 4 . Scanalyzers . | . . . . . Garrison Access . | . . . . . Data Cores Recovered 1 | . 1 . . . Used . | . . . . . Hacking Detections 7 | . . . 7 . Full Trace Events 1 | . . . 1 . Feedback Events . | . . . . . Feedback Blocked . | . . . . . Robot Schematics Acquired . | . . . . . Robots Built . | . . . . . Authchips . | . . . . . Time . | . . . . . Total Robot Build Rating . | . . . . . Part Schematics Acquired 8 | . . . . 8 Parts Built . | . . . . . Authchips . | . . . . . Time . | . . . . . Total Part Build Rating . | . . . . . Part Studies Acquired . | . . . . . Parts Repaired . | . . . . . Time . | . . . . . Parts Recycled . | . . . . . Recycled Matter . | . . . . . Retrieved Matter . | . . . . . Retrieved Components 10 | . . . 10 . Parts Scanalyzed . | . . . . . Part Schematics Acquired . | . . . . . Parts Damaged . | . . . . . Bothacking | -11 -10 -10 -9 -9 ------------ Run | Yrd Mat Sub Rec Scr Used RIF Installer . | . . . . . Robots Hacked . | . . . . . Non-combat . | . . . . . Combat . | . . . . . Robot Hacks Applied . | . . . . . Relay Couplers Released . | . . . . . Fabnet Peak Effective % . | . . . . . Robots Rewired . | . . . . . Allies Hacked . | . . . . . Hacks Repelled . | . . . . . Allies | -11 -10 -10 -9 -9 -------- Run | Yrd Mat Sub Rec Scr Total Allies . | . . . . . Largest Group . | . . . . . Highest-Rated Group . | . . . . . Highest-Rated Ally . | . . . . . Total Orders . | . . . . . Ally Attacks . | . . . . . Total Damage . | . . . . . Kills . | . . . . . Allies Corrupted . | . . . . . Allies Melted 3 | . . . . 3 Intel | -11 -10 -10 -9 -9 ------- Run | Yrd Mat Sub Rec Scr Active Infowar (turns) 3973 | 7 137 3829 . . Seismic 3973 | 7 137 3829 . . Robot Analysis Total 6 | . . . . 6 Derelict Logs Recovered 5 | . . 2 . 3 Drone Launches . | . . . . . Drone Recoveries . | . . . . . Exploration | -11 -10 -10 -9 -9 ------------- Run | Yrd Mat Sub Rec Scr Turns Passed 9292 | 224 137 4619 1410 2902 Spaces Moved 4637 | 114 88 2378 625 1432 Core 24 | 22 . 2 . . Treads 146 | 92 28 26 . . Legs 4256 | . . 2199 625 1432 Wheels 211 | . 60 151 . . Hover . | . . . . . Flight . | . . . . . Fastest Speed 50 | 50 100 100 200 130 Average Speed 171 | 138 119 166 200 173 Slowest Speed 200 | 160 160 200 200 200 Overloaded Moves . | . . . . . Propulsion Burnouts . | . . . . . Robots Hopped . | . . . . . Potential Cave-ins . | . . . . . Cave-ins Triggered . | . . . . . Exploration Rate (%) 62 | 5 28 97 97 85 Regions Visited 4 Branch Regions 3 Pre-discovered Areas 8 | . . . 6 2 Known Exits Taken 1 | . . . 1 . Unknown Exits Taken 3 | 1 1 1 . . Scrap Searched 13 | . . 10 . 3 Spaces Dug 16 | . . 8 . 8 Terrain Destroyed 49 | . . 20 2 27 Melee . | . . . . . Projectile 24 | . . 20 2 2 AOE 21 | . . . . 21 Terrain Rammed . | . . . . . Walls Destroyed . | . . . . . Machines Disabled . | . . . . . Actions | -11 -10 -10 -9 -9 --------- Run | Yrd Mat Sub Rec Scr Total 5679 | 149 119 2794 771 1846 Wait 672 | . 29 156 122 365 Move 4633 | 113 87 2377 624 1432 Hop . | . . . . . Pick Up 72 | 10 1 36 12 13 Fast Attach 4 | 1 . 1 . 2 Attach 17 | 6 . 6 1 4 Detach 2 | . . . 1 1 Swap 32 | . 2 23 1 6 Drop 53 | . . 39 2 12 Fire 174 | 19 . 136 8 11 Melee . | . . . . . Ram . | . . . . . Kick . | . . . . . Crush . | . . . . . Escape Stasis . | . . . . . Rewire . | . . . . . Trap . | . . . . . Miscellaneous 20 | . . 20 . . Route ------- -11/Scrapyard -10/Materials -10/Subcaves (discovered 4 exits: [*Mat x2] / *Rec / *Scr) -9/Recycling (discovered 2 exits: [*Fac] / *Scr) -9/Scraptown (discovered 1 exit: [*Fac]) History --------- Turn | Location | Event 14 | -11/Scrapyard | Discovered new exit (range 14) 225 | -11/Scrapyard | Entered Materials 226 | -10/Materials | Met a group of wandering Federalists 317 | -10/Materials | Build established: Mutant 329 | -10/Materials | Discovered new exit (range 8) 362 | -10/Materials | Entered Subcaves 363 | -10/Subcaves | Continued accompanying wandering Federalists (4) 363 | -10/Subcaves | Approached by a straggling Scientist 544 | -10/Subcaves | Discovered new exit (range 7) 566 | -10/Subcaves | Wandering Federalist uncovered a shortcut to Scraptown 636 | -10/Subcaves | A Subdweller sparked back to life 636 | -10/Subcaves | A Subdweller sparked back to life 636 | -10/Subcaves | A Subdweller sparked back to life 681 | -10/Subcaves | Found Prototype Leg 681 | -10/Subcaves | Identified Cargo Legs 683 | -10/Subcaves | Attached Cargo Legs, gained temporary slots: Utility x2 700 | -10/Subcaves | Lost 3 parts (2n1u) 803 | -10/Subcaves | A swath of the cavern ceiling suddenly collapsed 838 | -10/Subcaves | Disturbed a concealed Subdweller 1146 | -10/Subcaves | Build established: Subdweller-Mutant 1393 | -10/Subcaves | Visited 4L-MR0's lab 1406 | -10/Subcaves | Found Power Bank 1433 | -10/Subcaves | Shifting Twisted Machinery released Barrage Gun 1465 | -10/Subcaves | Shifting Twisted Machinery released Sub. Power Source 1875 | -10/Subcaves | Core integrity fell below 50% 2007 | -10/Subcaves | Learned Materials security intel 2192 | -10/Subcaves | Visited Clippyterm 2198 | -10/Subcaves | Learned Research machine intel 2349 | -10/Subcaves | Shifting Twisted Machinery released Battle Rifle 2351 | -10/Subcaves | Shifting Twisted Machinery released Mak. Kinetic Plating 2477 | -10/Subcaves | Shifting Twisted Machinery released Mak. Spear 2808 | -10/Subcaves | A swath of the cavern ceiling suddenly collapsed 3711 | -10/Subcaves | Discovered new exit (range 10) 4028 | -10/Subcaves | Discovered new exit (range 12) 4282 | -10/Subcaves | Found SUBCON Basin 4807 | -10/Subcaves | Ambushed by angry Subdweller bent on revenge 4981 | -10/Subcaves | Entered Recycling 5254 | -9/Recycling | Discovered new exit (range 16) 5534 | -9/Recycling | Scanned before Scraplab entrance 5562 | -9/Recycling | Entered Scraplab 5942 | -9/Recycling | Build established: Mutant 6099 | -9/Recycling | Learned Materials garrison access intel 6162 | -9/Recycling | Learned 2 Storage zone layouts 6214 | -9/Recycling | Identified exit to Scraptown 6257 | -9/Recycling | Learned location of 2 exits from Materials 6290 | -9/Recycling | Learned location of Zion (-7) 6312 | -9/Recycling | Learned 2 Materials zone layouts 6344 | -9/Recycling | Learned location of 1 exit from Storage 6391 | -9/Recycling | Entered Scraptown 6492 | -9/Scraptown | Visited Spacefarers 6520 | -9/Scraptown | Visited Fellowship of the Rings 6538 | -9/Scraptown | Visited Assassins FH 6564 | -9/Scraptown | Visited TADAMA 6638 | -9/Scraptown | Scanned Subdweller tech in exchange for log data 6644 | -9/Scraptown | Learned Factory emergency access door positions 6646 | -9/Scraptown | Learned location of Testing (-2) 6648 | -9/Scraptown | Learned location of Warlord (-5) 6668 | -9/Scraptown | Discovered new exit (range 13) 7120 | -9/Scraptown | Visited Red Mages 7138 | -9/Scraptown | Visited UFD Registry 7138 | -9/Scraptown | Registered with UFD as "Mattermod" 7178 | -9/Scraptown | Visited LU-1G1's Boring Crew 7206 | -9/Scraptown | Visited Science Guys 7270 | -9/Scraptown | Visited DA-N13 Charitable Foundation 7288 | -9/Scraptown | Found DCF Scrap (28 items) 7358 | -9/Scraptown | Delivered Scrap Shield to a Scientist 7440 | -9/Scraptown | Visited Curators Association 7510 | -9/Scraptown | Visited Analyses Database 7594 | -9/Scraptown | Visited Supply Room 7630 | -9/Scraptown | Visited Junk Repository 7678 | -9/Scraptown | Visited Observation Area 7788 | -9/Scraptown | Visited Shadow of the Wyrm 7804 | -9/Scraptown | Visited Symbiants 7976 | -9/Scraptown | Guru changed UFD alias to "Novakit" 8507 | -9/Scraptown | Visited Scrap Suit Storage 8668 | -9/Scraptown | Tech Extrapolator generated special schematic: Energy Deflector 8763 | -9/Scraptown | Tech Extrapolator generated special schematic: Machine Rigger 8820 | -9/Scraptown | Met Optimus 8820 | -9/Scraptown | Accepted into 0bPrime 9006 | -9/Scraptown | Tech Extrapolator generated special schematic: Vmp. Broadsword 9220 | -9/Scraptown | Civil war broke out across Scraptown 9234 | -9/Scraptown | Found Prototype Special Weapon 9235 | -9/Scraptown | Identified LU-1G1's Laser Shovel 9264 | -9/Scraptown | Found Field Manipulator 9287 | -9/Scraptown | Core integrity fell below 20% 9293 | -9/Scraptown | Destroyed by EP-1N9(j) with Overtuned Pulse Rifle Last Messages --------------- 09274_ Slug penetrates Wall. 09276_ Critical hit (Burn: +50). 09277_ D9-3PT(j) suffers critical hit (Destroy). 09277_ Destroyed Ovr. Titanium Leg. 09280_ Lgt. Deuterium Engine destroyed. 09280_ Critical hit (Burn: +50). 09282_ D9-3PT(j) heat short circuits Ovr. Pulse Rifle. 09284_ Critical hit (Burn: +50). 09284_ Destroyed Ion Engine. 09284_ Rocket Launcher destroyed. 09285_ ZQ-VQ8(j) cannibalizes Imp. Ion Engine to repair Lgt. Deuterium Engine. 09286_ 4F-89A(j) heat damages Scrap Suit. 09287_ AD-OD6(j) destroyed. 09287_ 4F-89A(j) destroyed. 09287_ Destroyed Imp. Hover Unit. 09287_ HH-ZMG(j) destroyed. 09289_ Discarded Tech Extrapolator. 09290_ Machine disabled. Map ----- +----------------------------------------------------+ | ""# ##????????#"" "#########??? | | ""# X"#????????#"" "## """"#??? | | ""# "" "" ##????????#"" "## " "#??? | | ""# "" "" X"#??????###"" "## X"#??? | | ""# " " ######### #"" "## "#??? | | "" "" ""#??? | | "" "" "## " "#??? | | ""# " " ######### #"" "## """"#??? | | ""# "" "" ""#??????###"" "## """"#??? | | ""# "" "" ##????????#"" "#########??? | | ""# X"#????????#"" "#??????????? | | ""# ##???????##"" "####?###??## | | ""###### ############# * "##"###"###"# | | """""""""""""""""""""""" [!% "## "*" "!" # | | """""""""""""""""""" "" !%! """ """ # | | != "## | | = %= ## "" | | =%! =!= ## "/ | | [ [ !% ## "" | | ! !%g * %# | | """" """"""""""" """"""""" *!p "= *!## """ """ # | | #### ########### ######## # %[ ## "]" "!" # | | ##" ## gjj!!=* # ##"###"###"# | | # # ## "## %%![ [ # ####?###??## | | ?# # ##"" "" "&# ; ====[[] # #??????????? | | # # ##"" "" " # #@ !*!]%* # #??????????? | | ####### ##"" &"## ## *=## #??????????? | | ##"""" " ##; ##=**## ############ | | # "[" # ##""" "" "#?########### # | | ?# " " # ##" " ""#???????????# ## | | # " " # ##""" [""#???????????# # | | " X """#???????????# # | | #### ######"""""""""""#???????????# # | | ???###????#############???????????# ############ | | ??????????????????????????######### #####??????? | | ??????????????????????"??#"""##"|"# """"#??????? | | ??????????????##" "##"""##""|##" # "" "#??????? | | ?????????????? "#??????? | | ?????????????? " "#??????? | | ?????????????? ![!! """"#??????? | | ???????????????????##"|"##!!%##"" ## ######??????? | | ?????????????????????????#"""##"""####???????????? | | ?????????????????????????##########??????????????? | | ?????????????????????????????????????????????????? | | ?????????????????????????????????????????????????? | | ?????????????????????????????????????????????????? | | ?????????????????????????????????????????????????? | | ?????????????????????????????????????????????????? | | ?????????????????????????????????????????????????? | | ?????????????????????????????????????????????????? | +----------------------------------------------------+ Best States ------------- Heat Dissipation 25 Energy Generation 15 Energy Capacity 250 Matter Stores 300 Matter Capacity 300 Sight Range 16 Terrain Scan Density 10 Armor Coverage 900 Resistance: KI 10 Projectile Deflection 75 Evasion (%) 55 Recoil Reduction 2 Authchip Count 4 Item Schematics ----------------- Spk. Treads | -9/Scraptown | Extrapolated 0b10 Decoder Chip [Scout] | -9/Scraptown | Extrapolated Mak. Light Armor Plating | -9/Scraptown | Extrapolated Energy Deflector | -9/Scraptown | Extrapolated Machine Rigger | -9/Scraptown | Extrapolated Mak. Coolant Network | -9/Scraptown | Extrapolated Hvy. Battle Rifle | -9/Scraptown | Extrapolated Vmp. Broadsword | -9/Scraptown | Extrapolated Robot Schematics ------------------ None Fabricated ------------ Nothing Repaired ---------- Nothing Studied --------- None Alien Tech Used ----------------- None Achievements -------------- Barbarian Challenges ------------ None Game ------ Seed XenonStealthLauncher Manual? 0 Play Time 00:36:15 Cumulative 548.2 hours Start 2025.11.24 @ 20:30:47 End 2025.11.25 @ 09:59:58 Sessions 4 Manual Loads 0 Difficulty Rogue Special Mode None Game No. 718 Rogue 718 Adventurer 0 Explorer 0 Win Type - Total 19 Types 8/1/2/2/2/0/2/2/0/0 Lore% 92 Gallery% 86 Achievement% 71 Wizard Run 0 Options --------- Layout 2 ASCII 0 Keyboard 0 Movement Mouse Keybinds 0 Fullscreen 1 Font 24/Tamsyn Map View 50x44 Zoom Use 0% Tactical HUD 1 Map Filters NONE Filters NONE Steam 1 RUN: c93dff40-5f26-4edb-ad61-b092596f7be7